bitfinex-derivatives/quotes_ETHF0:USTF0_20250110
["timestamp","ask_amount","ask_price","bid_price","bid_amount"]
[1736523788339,3.2078,3259.4,3258.7,3.51477]
[1736523788645,3.2078,3259.4,3257.7,1.33322454]
[1736523788646,3.31799595,3259.2,3258.4,0.307]
[1736523788843,0.30694,3259.1,3258.6,0.30698]
[1736523789043,3.51471,3259.4,3258.9,0.30695]
[1736523789342,3.51471,3259.4,3258.7,0.30697]
[1736523789343,0.30693,3259.2,3258.7,0.30697]
[1736523789534,3.2078,3259.4,3258.6,3.2078]
[1736523789735,3.31799595,3259.7,3258.6,3.2078]
[1736523789936,0.30684,3260.1,3259.6,0.30689]
[1736523790240,0.3069,3259.5,3259.1,0.30694]
[1736523790432,0.30691,3259.4,3258.5,4.4387]
[1736523790638,3.31799595,3260.2,3259.1,3.2078]
[1736523790837,3.31799595,3260.7,3259.5,3.2078]
[1736523791033,5.03399595,3260.7,3259.5,3.2078]
[1736523791236,1.716,3260.7,3260.4,0.30678]
[1736523791441,1.716,3260.7,3260.6,3.2078]
[1736523791645,2.02276,3260.7,3260.6,3.2078]
[1736523791844,2.02275,3260.7,3260.3,0.30679]
[1736523792136,0.3067,3261.4,3260.9,0.30673]
[1736523792338,3.31799595,3261.7,3261.0,40.8]
[1736523792641,0.125,3262.8,3261.0,40.8]
[1736523792642,3.31799595,3262.2,3261.3,3.2078]
[1736523792837,7.13523032,3261.9,3261.6,0.30666]
[1736523793044,3.31799595,3261.7,3260.7,3.2078]
[1736523793236,3.2078,3261.8,3260.3,0.30679]
[1736523793237,0.30676,3260.7,3260.3,0.30679]
[1736523793433,1.716,3261.6,3260.2,1.2309]
[1736523793434,1.716,3261.6,3260.4,3.2078]
[1736523793633,3.31799595,3261.2,3260.2,42.0309]
[1736523793948,3.31799595,3261.2,3260.5,3.2078]
[1736523794137,1.716,3261.6,3260.5,3.2078]
[1736523794345,3.31799595,3262.2,3260.9,3.2078]
[1736523794640,3.31799595,3261.7,3260.5,3.2078]
[1736523794839,0.30669,3261.4,3260.9,3.2078]
[1736523795046,3.31799595,3261.7,3260.9,3.2078]
[1736523795344,1.716,3261.6,3260.6,3.2078]
[1736523795543,0.3067,3261.3,3260.8,3.2078]
[1736523795740,0.30672,3261.1,3260.8,3.51454]
[1736523795935,1.716,3261.6,3260.4,3.2078]
[1736523796242,0.76671,3261.5,3260.4,3.2078]
[1736523796443,0.76682,3261.0,3260.0,3.51462]
[1736523796646,3.2078,3261.1,3260.4,3.2078]
[1736523796647,0.30677,3260.6,3260.4,3.2078]
[1736523796845,0.30677,3260.6,3259.9,3.2078]
[1736523796846,0.30682,3260.0,3259.9,3.2078]
[1736523797246,0.30681,3260.2,3259.9,3.72036294]
[1736523797540,0.30677,3260.5,3259.9,3.2078]
[1736523797736,0.30682,3260.0,3259.9,3.2078]
[1736523798847,5.03399595,3260.7,3259.9,3.41353294]
[1736523799046,0.30682,3260.0,3259.9,1.34025]
[1736523799342,0.30693,3258.9,3258.6,0.30694]
[1736523799537,0.76708,3259.9,3258.4,3.2078]
[1736523799538,0.3069,3259.2,3258.4,3.2078]
[1736523799735,1.716,3259.4,3258.4,3.2078]
[1736523799938,1.716,3259.4,3258.5,0.76741]
[1736523800143,3.31799595,3260.0,3259.3,3.2078]
[1736523800345,0.30687,3259.5,3259.3,3.2078]
[1736523800540,3.31799595,3260.0,3259.3,3.2078]
[1736523800541,0.30688,3259.4,3259.3,3.2078]
[1736523800743,3.2078,3259.8,3258.9,3.2078]
[1736523800947,0.30686,3259.6,3259.4,3.2078]
[1736523801149,0.76692,3260.6,3259.4,3.2078]
[1736523801150,4.9238,3260.9,3259.4,3.2078]
[1736523801445,4.9238,3260.9,3259.9,3.2078]
[1736523801651,0.30678,3260.4,3259.5,3.2078]
[1736523801838,0.76701,3260.2,3259.5,3.2078]
[1736523802147,6.52579595,3260.5,3259.5,3.2078]
[1736523802148,0.30684,3259.8,3259.5,3.2078]
[1736523802342,6.52579595,3260.5,3259.5,3.2078]
[1736523802550,5.03399595,3260.0,3259.3,0.30689]
[1736523802844,1.1044,3261.4,3259.4,3.2078]
[1736523802845,6.52579595,3260.5,3259.4,3.2078]
[1736523803043,6.52579595,3260.5,3260.0,3.2078]
[1736523803044,3.31799595,3260.5,3260.0,3.2078]
[1736523803247,1.716,3260.7,3260.0,3.2078]
[1736523804044,0.30671,3261.2,3260.5,0.30677]
[1736523804347,9.14709804,3262.4,3261.7,0.30665]
[1736523804551,9.14709804,3262.4,3260.1,7.20804595]
[1736523804552,9.14709804,3262.4,3261.3,3.2078]
[1736523804848,5.93929804,3262.4,3261.3,3.2078]
[1736523805147,5.93929804,3262.4,3261.4,0.30668]
[1736523805148,0.30667,3261.7,3261.4,0.30668]
[1736523805350,9.00828595,3262.5,3261.3,3.2078]
[1736523805540,3.2078,3262.2,3261.3,3.2078]
[1736523805845,0.30666,3261.8,3261.6,0.30666]
[1736523806149,0.30669,3261.4,3261.1,3.2078]
[1736523806344,3.31799595,3261.5,3260.8,40.8]
[1736523806645,3.31799595,3261.5,3260.2,2.48301]
[1736523806646,3.2078,3261.4,3260.2,3.2078]
[1736523806842,0.30673,3261.0,3260.6,3.2078]
[1736523807047,3.2078,3261.4,3260.6,3.2078]
[1736523807445,1.716,3261.6,3260.1,2.356]
[1736523807446,6.52579595,3261.0,3260.1,2.356]
[1736523807948,3.31799595,3261.0,3260.9,0.30674]
[1736523808249,0.30674,3260.9,3260.7,0.30675]
[1736523808460,3.31799595,3261.0,3260.9,0.30674]
[1736523808746,3.31799595,3261.0,3260.6,3.2078]
[1736523808747,1.716,3261.7,3261.4,0.30669]
[1736523808942,0.30668,3261.6,3261.3,3.2078]
[1736523809247,0.30668,3261.6,3260.7,1.86769]
[1736523809248,0.30671,3261.2,3261.0,0.30672]
[1736523809452,3.31799595,3261.5,3260.8,3.2078]
[1736523809654,3.31799595,3261.5,3261.0,0.30672]
[1736523809655,0.3067,3261.3,3261.0,0.30672]
[1736523809853,3.31799595,3261.5,3260.9,0.30673]
[1736523810051,3.31799595,3261.5,3260.8,3.2078]
[1736523810246,0.30671,3261.2,3261.0,0.30672]
[1736523810453,0.30673,3261.1,3260.8,3.51454]
[1736523810654,0.30674,3260.9,3260.8,3.2078]
[1736523810950,3.31799595,3261.5,3260.8,3.41353294]
[1736523811164,2.02265,3261.8,3261.6,0.30667]
[1736523811351,2.02265,3261.8,3261.2,3.2078]
[1736523811352,1.716,3261.8,3261.2,3.2078]
[1736523811648,0.30674,3260.9,3260.8,3.2078]
[1736523811951,0.30674,3260.9,3260.7,0.30675]
[1736523812152,3.31799595,3261.0,3260.4,3.2078]
[1736523812349,0.30677,3260.5,3260.4,3.2078]
[1736523812551,0.30677,3260.6,3260.4,3.51458]
[1736523812751,6.52579595,3261.0,3260.4,3.2078]
[1736523812955,0.30677,3260.5,3260.4,3.2078]
[1736523813144,3.31799595,3260.5,3259.8,3.2078]
[1736523813351,1.716,3260.9,3260.2,3.2078]
[1736523813645,3.31799595,3261.5,3260.6,3.2078]
[1736523813857,3.31799595,3261.5,3261.1,0.30672]
[1736523813858,0.30671,3261.2,3261.1,0.30672]
[1736523814148,0.3067,3261.3,3261.2,0.3067]
[1736523814350,0.3067,3261.3,3261.1,3.51451]
[1736523814546,3.31799595,3261.5,3261.1,3.2078]
[1736523814748,4.75143843,3262.1,3262.0,0.30663]
[1736523814953,10.73957,3263.4,3262.3,0.3066]
[1736523814954,4.54570549,3262.4,3262.3,0.3066]
[1736523815151,4.54570549,3262.4,3262.3,3.5144]
[1736523815348,4.85229549,3262.4,3262.3,3.2078]
[1736523815547,4.54570549,3262.4,3262.3,3.2078]
[1736523815750,4.85229549,3262.4,3262.3,3.2078]
[1736523816046,0.76657,3262.1,3261.7,0.00192027]
[1736523816252,3.62464595,3261.8,3261.7,0.00192027]
[1736523816749,3.62464595,3261.8,3261.7,2.7e-07]
[1736523817050,3.31799595,3261.8,3261.0,3.2078]
[1736523817257,3.31799595,3261.8,3261.4,3.2078]
[1736523817552,4.9568,3262.6,3261.4,3.2078]
[1736523817553,0.30663,3262.1,3261.9,0.30664]
[1736523817756,0.30663,3262.1,3261.2,0.76675]
[1736523817757,0.30663,3262.1,3262.0,3.2078]
[1736523817953,9.25729399,3262.3,3262.0,3.2078]
[1736523818151,5.93929804,3262.3,3262.2,0.30661]
[1736523818857,0.30659,3262.5,3262.4,0.30659]
[1736523819057,0.30659,3262.5,3262.4,3.51439]
[1736523819252,0.30657,3262.7,3262.4,3.2078]
[1736523819455,0.30659,3262.5,3262.4,3.51439]
[1736523819757,10.32219399,3263.3,3262.4,3.2078]
[1736523820052,3.97397,3263.8,3261.5,1.1077]
[1736523820053,5.93929804,3263.7,3263.6,0.30648]
[1736523820359,5.93929804,3263.7,3263.6,3.51428]
[1736523820558,7.13523032,3264.1,3263.6,3.51428]
[1736523820559,7.13523032,3264.1,3264.0,0.30644]
[1736523820747,7.13523032,3264.1,3264.0,3.2078]
[1736523821056,0.30646,3263.9,3263.6,0.30648]
[1736523821258,0.30645,3263.9,3263.8,3.2078]
[1736523821450,7.13523032,3264.1,3263.8,3.2078]
[1736523821646,7.13523032,3264.1,3264.0,0.30644]
[1736523821850,15.21004649,3264.8,3263.8,3.2078]
[1736523821851,3.31799595,3264.8,3264.1,0.30643]
[1736523822055,3.31799595,3264.8,3263.8,3.2078]
[1736523822351,8.55413774,3265.4,3263.8,3.2078]
[1736523822352,0.30645,3263.9,3263.8,3.2078]
[1736523822661,0.30641,3264.5,3263.8,3.2078]
[1736523822858,0.30641,3264.5,3264.4,3.2078]
[1736523823059,3.31799595,3264.8,3264.4,3.2078]
[1736523823352,3.31799595,3264.8,3263.9,3.2078]
[1736523823353,0.30644,3264.0,3263.9,3.2078]
[1736523823545,0.30642,3264.3,3263.9,3.2078]
[1736523823750,3.2078,3265.0,3264.3,0.30641]
[1736523823946,3.2078,3265.0,3264.4,3.2078]
[1736523824152,0.3064,3264.5,3264.4,3.2078]
[1736523824456,0.3064,3264.5,3264.3,0.30641]
[1736523824457,0.30644,3264.0,3263.9,3.2078]
[1736523824851,4.08394595,3264.8,3263.9,3.2078]
[1736523824852,3.31799595,3264.8,3263.9,3.2078]
[1736523825050,3.31799595,3264.8,3264.0,3.2078]
[1736523825452,0.30644,3264.1,3264.0,3.2078]
[1736523825653,3.2078,3264.6,3263.5,3.2078]
[1736523825956,3.31799595,3264.3,3263.5,3.2078]
[1736523826255,0.30644,3264.1,3263.9,3.2078]
[1736523826456,3.2078,3264.6,3263.9,3.2078]
[1736523826760,0.3064,3264.5,3263.9,3.2078]
[1736523826962,3.31799595,3264.8,3264.5,0.3064]
[1736523827258,4.9558,3265.2,3264.4,3.2078]
[1736523827458,0.30638,3264.8,3264.5,0.3064]
[1736523827863,0.30634,3265.1,3264.4,3.2078]
[1736523828054,3.2078,3265.2,3264.7,0.30637]
[1736523828356,3.31799595,3265.3,3265.0,3.2078]
[1736523828563,3.31799595,3265.3,3263.3,6.18009595]
[1736523828564,0.3064,3264.5,3264.4,3.2078]
[1736523828858,3.2078,3264.6,3263.6,3.2078]
[1736523829054,0.30644,3264.1,3263.6,3.51428]
[1736523829256,0.30647,3263.8,3263.6,3.2078]
[1736523829460,3.31799595,3264.2,3263.6,3.2078]
[1736523829851,3.31799595,3263.7,3262.7,3.2078]
[1736523830058,3.31799595,3263.7,3263.1,3.2078]
[1736523830251,0.30648,3263.6,3263.2,0.30652]
[1736523830457,0.30644,3264.0,3263.3,0.30651]
[1736523830751,0.30645,3264.0,3263.6,0.30648]
[1736523830958,0.24027652,3264.5,3263.5,3.2078]
[1736523831159,0.30644,3264.1,3263.9,3.2078]
[1736523831759,9.43879595,3264.7,3263.9,3.2078]
[1736523831960,9.74517595,3264.7,3264.4,0.3064]
[1736523832154,7.69079595,3264.7,3263.9,3.2078]
[1736523832358,0.30641,3264.4,3264.0,0.30644]
[1736523832563,0.30641,3264.4,3263.9,44.0078]
[1736523832868,3.2078,3265.1,3264.3,3.2078]
[1736523833054,3.62433595,3265.2,3264.9,0.30635]
[1736523833259,3.62433595,3265.2,3264.2,3.2078]
[1736523833260,3.31799595,3265.2,3264.2,3.2078]
[1736523833466,3.31799595,3265.2,3263.9,0.76612]
[1736523833467,3.31799595,3265.2,3264.7,3.2078]
[1736523833762,3.31799595,3265.2,3264.2,3.2078]
[1736523833962,3.31799595,3265.2,3264.4,0.3064]
[1736523833963,0.30639,3264.6,3264.4,0.3064]
[1736523834271,0.30639,3264.6,3263.6,1.84111]
[1736523834272,3.31799595,3264.7,3263.6,4.2827]
[1736523834471,0.30644,3264.0,3263.8,0.30646]
[1736523834959,0.3065,3263.4,3263.3,40.8]
[1736523835167,3.2078,3263.9,3262.7,3.2078]
[1736523835168,1.748,3263.6,3262.7,3.2078]
[1736523835365,0.30657,3262.7,3262.5,0.30659]
[1736523835564,0.30657,3262.7,3262.4,1.1255]
[1736523835565,3.31799595,3263.6,3262.6,3.2078]
[1736523835862,6.52579595,3264.1,3263.5,0.30649]
[1736523836063,6.52579595,3264.1,3263.6,3.2078]
[1736523836259,0.30648,3263.7,3263.4,0.3065]
[1736523836657,0.30646,3263.8,3263.5,3.51428]
[1736523836863,6.52579595,3264.1,3263.5,3.2078]
[1736523837060,0.30647,3263.7,3263.5,3.2078]
[1736523837260,6.52579595,3264.1,3263.5,3.51429]
[1736523837261,0.30648,3263.6,3263.5,3.51429]
[1736523837459,1.748,3264.4,3263.5,3.2078]
[1736523837668,1.748,3264.4,3263.9,3.2078]
[1736523837969,0.30645,3264.0,3263.9,3.2078]
[1736523838264,1.748,3264.4,3263.9,3.2078]
[1736523838457,0.30647,3263.8,3263.6,0.30648]
[1736523838659,1.748,3264.4,3263.5,3.2078]
[1736523838970,0.30642,3264.3,3264.1,0.30643]
[1736523839263,0.76591,3264.9,3262.9,2.72185]
[1736523839264,5.52,3265.0,3263.9,3.2078]
[1736523839470,0.76593,3264.8,3263.9,3.2078]
[1736523839664,0.76593,3264.8,3263.6,1.1853]
[1736523839665,3.97387,3264.3,3263.5,0.30648]
[1736523839866,3.2078,3264.3,3263.3,3.2078]
[1736523840071,0.30646,3263.9,3263.7,3.51427]
[1736523840268,3.2078,3264.3,3263.7,3.51427]
[1736523840469,4.08398595,3264.6,3264.1,3.2078]
[1736523840470,0.30643,3264.2,3264.1,3.2078]
[1736523840669,3.97373,3264.9,3264.1,3.2078]
[1736523840670,3.2078,3264.9,3264.1,3.2078]
[1736523840867,0.30643,3264.2,3264.1,3.2078]
[1736523841061,3.2078,3264.5,3263.4,3.2078]
[1736523841267,0.76602,3264.4,3263.7,0.30647]
[1736523841461,3.2078,3264.5,3263.4,3.2078]
[1736523841666,0.30642,3264.3,3264.2,0.30643]
[1736523841868,3.2078,3264.9,3263.8,3.2078]
[1736523842172,0.30632,3265.3,3265.0,0.30635]
[1736523842473,12.7720448,3265.6,3264.6,3.2078]
[1736523842772,5.48239595,3266.1,3265.5,3.2078]
[1736523842974,3.2078,3266.2,3265.5,3.2078]
[1736523843169,8.88323032,3266.4,3265.9,3.2078]
[1736523843170,7.13523032,3266.4,3265.9,3.2078]
[1736523843669,7.13523032,3266.4,3265.4,40.8]
[1736523843670,0.3063,3265.6,3265.4,44.0078]
[1736523844271,0.76565,3266.0,3264.9,0.30636]
[1736523844469,0.76571,3265.8,3264.8,3.2078]
[1736523844677,1.725,3265.9,3264.8,3.2078]
[1736523844869,0.30636,3264.9,3264.8,3.2078]
[1736523845372,3.31799595,3265.6,3264.8,3.2078]
[1736523845567,1.1056,3265.8,3265.2,3.2078]
[1736523845775,8.25079595,3266.6,3265.7,3.2078]
[1736523846267,0.30631,3265.4,3265.3,4.3377]
[1736523846475,0.3063,3265.6,3265.3,4.3377]
[1736523846668,0.30631,3265.4,3265.3,4.3377]
[1736523846970,0.76565,3266.0,3265.3,3.2078]
[1736523847169,0.76565,3266.0,3264.8,3.2078]
[1736523847170,6.52579595,3265.6,3264.8,3.2078]
[1736523847374,3.31799595,3265.0,3264.1,0.30644]
[1736523847671,3.31799595,3265.0,3264.0,3.2078]
[1736523847873,0.30644,3264.1,3264.0,3.2078]
[1736523848268,3.31799595,3264.5,3263.6,1.1167]
[1736523848468,0.30647,3263.7,3263.6,1.1167]
[1736523848677,0.3065,3263.4,3263.2,3.51432]
[1736523848973,1.725,3264.5,3263.2,3.51432]
[1736523848974,0.30647,3263.7,3263.5,0.30649]
[1736523849168,1.725,3264.5,3263.6,3.2078]
[1736523849474,3.31799595,3265.0,3264.4,3.2078]
[1736523849977,0.30639,3264.6,3264.4,3.5142]
[1736523850177,3.2078,3265.2,3264.0,0.30644]
[1736523850178,3.31799595,3265.0,3264.0,0.30644]
[1736523850368,0.30644,3264.0,3263.9,3.2078]
[1736523850576,0.3064,3264.5,3264.0,0.30644]
[1736523850771,0.3064,3264.5,3264.4,3.2078]
[1736523850978,0.30641,3264.4,3264.3,3.2078]
[1736523851180,0.30643,3264.2,3263.4,0.76626]
[1736523851482,0.30643,3264.2,3264.0,0.30644]
[1736523851686,0.30643,3264.2,3263.9,0.30645]
[1736523851975,0.30646,3263.9,3263.7,3.2078]
[1736523852173,0.30646,3263.9,3263.1,1.92292]
[1736523852174,6.52579595,3264.0,3263.2,3.2078]
[1736523852376,0.3065,3263.5,3263.2,44.31432]
[1736523852575,4.9328,3264.4,3263.2,44.0078]
[1736523852880,1.53143,3265.8,3263.2,44.0078]
[1736523852881,7.57384114,3266.0,3264.3,3.2078]
[1736523853180,7.57384114,3266.0,3265.9,0.30627]
[1736523853181,3.60559163,3266.0,3265.9,0.30627]
[1736523853480,8.3309845,3267.7,3265.9,5.0]
[1736523853675,11.64898045,3267.7,3267.1,3.2078]
[1736523853877,0.3062,3266.7,3266.5,3.2078]
[1736523854069,0.30618,3266.8,3266.5,3.2078]
[1736523854475,0.30618,3266.9,3266.6,0.3062]
[1736523854679,3.2078,3267.4,3266.5,3.2078]
[1736523854882,3.55848,3268.1,3266.4,0.76555]
[1736523854883,3.5527,3268.0,3266.9,3.2078]
[1736523855080,0.30615,3267.2,3266.9,3.51397]
[1736523855278,6.52579595,3267.7,3266.9,3.2078]
[1736523855476,0.30616,3267.0,3266.9,3.2078]
[1736523855777,3.2078,3267.3,3266.1,3.2078]
[1736523855778,0.76539,3267.1,3266.1,3.2078]
[1736523855986,5.04299595,3267.2,3265.7,0.30628]
[1736523855987,0.30626,3266.0,3265.7,0.30628]
[1736523856185,0.30625,3266.1,3265.7,0.30628]
[1736523856482,0.30624,3266.2,3265.8,0.30627]
[1736523856677,1.1078,3266.6,3265.6,3.2078]
[1736523856876,0.30625,3266.1,3265.7,0.30628]
[1736523857079,0.30623,3266.4,3265.6,3.2078]
[1736523857274,0.30623,3266.3,3265.9,0.30626]
[1736523857474,2.8328,3266.6,3265.6,3.2078]
[1736523857777,2.8328,3266.6,3264.5,5.93507595]
[1736523857778,0.30624,3266.2,3265.3,0.30632]
[1736523857978,0.30629,3265.7,3265.3,0.30632]
[1736523858183,3.2078,3266.3,3264.7,4.3272]
[1736523858383,3.2078,3266.3,3265.0,0.30635]
[1736523858384,0.30632,3265.4,3265.0,0.30635]
[1736523858581,0.76565,3266.0,3265.1,0.30634]
[1736523858784,6.52579595,3266.3,3264.7,4.3272]
[1736523858986,0.30634,3265.2,3264.8,0.30636]
[1736523859191,0.30634,3265.2,3264.8,0.30637]
[1736523859385,3.97348,3265.9,3264.7,3.2078]
[1736523859386,3.2078,3265.9,3264.7,3.2078]
[1736523859692,3.2078,3265.9,3264.5,1.0851]
[1736523859693,0.3063,3265.5,3265.1,3.51414]
[1736523859987,0.30621,3266.5,3266.1,0.30624]
[1736523860293,0.30617,3267.0,3266.1,3.2078]
[1736523860490,0.30616,3267.1,3266.8,3.2078]
[1736523860692,3.2078,3267.7,3266.8,3.2078]
[1736523860878,0.30612,3267.5,3266.8,3.2078]
[1736523861085,3.2078,3268.1,3267.2,3.2078]
[1736523861379,3.2078,3268.1,3267.7,3.2078]
[1736523861681,0.30607,3268.0,3267.7,3.2078]
[1736523861884,3.2078,3268.1,3267.7,3.2078]
[1736523862385,0.30609,3267.8,3267.7,3.2078]
[1736523862689,0.30607,3268.0,3267.7,3.2078]
[1736523862991,0.24652226,3268.4,3267.7,3.2078]
[1736523863292,0.30607,3268.1,3267.7,3.51389]
[1736523863690,1.36538165,3268.7,3267.3,3.2078]
[1736523863886,0.30606,3268.1,3267.8,0.30609]
[1736523864086,0.30606,3268.2,3267.8,0.30609]
[1736523864282,0.30606,3268.2,3267.7,3.2078]
[1736523864480,0.30606,3268.2,3267.9,0.30608]
[1736523864687,0.30605,3268.2,3267.9,0.30608]
[1736523864884,1.36538165,3268.7,3267.7,3.2078]
[1736523865189,1.36538165,3268.7,3268.1,0.30606]
[1736523865190,0.30603,3268.4,3268.1,0.30606]
[1736523865390,1.67139165,3268.7,3267.8,0.76523]
[1736523865579,3.2078,3268.9,3268.2,3.2078]
[1736523865786,3.2078,3268.9,3267.1,1.124]
[1736523865787,3.2078,3268.5,3267.7,3.2078]
[1736523865986,3.2078,3268.1,3267.4,0.30612]
[1736523866182,3.2078,3268.1,3267.3,3.2078]
[1736523866381,0.30607,3268.0,3267.7,0.3061]
[1736523866692,3.2078,3268.1,3267.3,3.2078]
[1736523866895,0.30608,3268.0,3267.4,0.30613]
[1736523867084,0.30611,3267.6,3267.3,3.2078]
[1736523867385,3.2078,3268.1,3267.9,0.30608]
[1736523867592,0.30608,3267.9,3267.5,0.30611]
[1736523867781,3.2078,3268.1,3267.3,3.2078]
[1736523868405,0.3061,3267.7,3267.4,0.30612]
[1736523868990,0.76511,3268.3,3266.5,3.2078]
[1736523868991,3.2078,3267.6,3266.5,3.2078]
[1736523869295,0.30624,3266.2,3266.1,3.2078]
[1736523869485,0.30628,3265.8,3265.7,0.24300598]
[1736523869687,3.2078,3266.3,3265.1,4.3427]
[1736523869993,3.2078,3266.3,3265.1,3.2078]
[1736523869994,0.76563,3266.1,3265.1,3.2078]
[1736523870288,3.45129473,3266.3,3265.6,3.2078]
[1736523870289,1.0979,3266.2,3265.6,3.2078]
[1736523870494,0.30627,3265.9,3265.6,3.51409]
[1736523870691,1.0979,3266.2,3265.6,3.2078]
[1736523870992,0.30629,3265.7,3265.6,3.2078]
[1736523871385,0.30625,3266.1,3265.2,3.2078]
[1736523871584,1.0979,3266.2,3265.2,3.2078]
[1736523871987,0.30629,3265.7,3265.4,0.30631]
[1736523872385,1.0979,3266.2,3265.4,0.30631]
[1736523872596,1.0979,3266.2,3265.3,40.8]
[1736523872788,0.30632,3265.3,3265.2,3.2078]
[1736523872986,3.2078,3265.8,3264.7,4.3293]
[1736523873194,0.30628,3265.8,3265.5,0.3063]
[1736523873381,0.30628,3265.8,3265.1,3.2078]
[1736523873382,0.76559,3266.3,3265.1,3.2078]
[1736523873588,3.97346,3266.0,3265.1,3.2078]
[1736523873786,0.30633,3265.2,3265.1,3.2078]
[1736523873987,5.69246,3266.0,3265.1,3.2078]
[1736523874188,0.30633,3265.2,3265.1,3.2078]
[1736523874895,0.30637,3264.8,3264.7,3.2078]
[1736523875087,3.2078,3265.0,3264.2,3.2078]
[1736523875394,0.3064,3264.5,3264.2,3.2078]
[1736523875583,3.2078,3265.0,3264.2,3.2078]
[1736523875584,0.30641,3264.4,3264.2,3.2078]
[1736523875788,0.30642,3264.3,3264.2,3.2078]
[1736523876584,0.30647,3263.7,3263.6,3.2078]
[1736523876898,0.30644,3264.1,3263.7,0.30647]
[1736523877195,0.30644,3264.1,3263.7,41.10647]
[1736523877695,3.97378,3264.6,3263.7,40.8]
[1736523877990,0.766,3264.5,3263.7,40.8]
[1736523878293,3.2078,3264.6,3264.2,3.2078]
[1736523878497,3.2078,3265.6,3264.3,0.30641]
[1736523878792,0.30636,3264.9,3264.8,3.2078]
[1736523878997,4.08376595,3265.5,3264.7,3.2078]
[1736523879293,0.76582,3265.3,3264.3,3.2078]
[1736523879683,3.31799595,3265.5,3264.3,3.2078]
[1736523879886,0.76586,3265.1,3263.9,3.2078]
[1736523880090,3.31799595,3264.5,3263.9,3.2078]
[1736523880288,3.31799595,3264.5,3263.4,4.3035]
[1736523880289,0.76604,3264.4,3263.4,4.3035]
[1736523880494,0.30648,3263.7,3263.4,4.3035]
[1736523880697,3.31799595,3264.5,3263.4,4.3035]
[1736523880891,0.30649,3263.6,3263.3,3.2078]
[1736523881496,0.76607,3264.2,3263.3,3.5143]
[1736523881694,1.1211,3264.4,3263.3,3.2078]
[1736523881892,0.30642,3264.3,3263.9,0.30645]
[1736523882196,3.2078,3264.5,3264.0,40.8]
[1736523882398,0.30644,3264.1,3264.0,40.8]
[1736523882594,3.2078,3264.5,3263.8,3.2078]
[1736523882595,0.30645,3263.9,3263.8,3.2078]
[1736523883693,6.52579595,3265.0,3263.8,3.51426]
[1736523883891,0.3064,3264.5,3264.4,3.2078]
[1736523884092,0.76585,3265.2,3264.4,3.2078]
[1736523884291,3.2078,3265.4,3264.0,3.2078]
[1736523884292,1.36887335,3265.3,3264.0,3.2078]
[1736523884592,0.30644,3264.1,3264.0,3.2078]
[1736523884794,3.2078,3264.9,3264.0,3.2078]
[1736523885096,0.30647,3263.7,3263.6,3.2078]
[1736523885395,0.30652,3263.2,3263.1,3.2078]
[1736523885694,0.30652,3263.2,3262.5,1.1039]
[1736523885695,3.2078,3263.2,3262.5,1.1039]
[1736523885894,3.2078,3263.2,3262.3,3.2078]
[1736523886090,0.30659,3262.4,3262.3,3.2078]
[1736523887189,0.30659,3262.5,3262.3,3.2078]
[1736523887500,0.30659,3262.4,3262.3,3.2078]
[1736523887696,2.03251625,3274.8,3262.3,3.2078]
[1736523887697,4.9268,3264.1,3262.3,3.2078]
[1736523887904,0.76614,3263.9,3263.1,3.2078]
[1736523888094,4.9268,3264.1,3263.1,3.2078]
[1736523888289,0.76617,3263.8,3263.1,3.2078]
[1736523888490,0.30651,3263.3,3263.1,3.51433]
[1736523888695,4.9268,3264.1,3263.1,3.2078]
[1736523889000,0.30651,3263.3,3263.1,3.2078]
[1736523889201,0.30646,3263.8,3263.2,0.30652]
[1736523889404,0.30651,3263.4,3263.1,3.51433]
[1736523889699,0.30639,3264.6,3264.3,0.30641]
[1736523890004,0.76586,3265.1,3264.1,3.2078]
[1736523890005,0.30642,3264.3,3264.1,3.2078]
[1736523890299,0.30643,3264.2,3264.1,3.2078]
[1736523890906,0.30642,3264.3,3264.1,3.2078]
[1736523891092,0.30641,3264.4,3264.1,3.2078]
[1736523891398,4.84960595,3265.4,3264.1,3.2078]
[1736523891399,0.76577,3265.5,3264.2,0.76607]
[1736523891703,0.30636,3265.0,3264.8,3.2078]
[1736523892303,5.03852,3265.7,3264.8,44.0078]
[1736523892504,0.30635,3265.1,3264.8,44.31417]
[1736523892703,0.30636,3265.0,3264.8,44.31417]
[1736523892906,0.76574,3265.6,3264.8,44.0078]
[1736523893099,1.83072,3265.7,3264.8,44.0078]
[1736523893298,0.30627,3265.9,3265.6,3.2078]
[1736523893500,3.31799595,3266.9,3265.6,3.2078]
[1736523893714,0.76547,3266.8,3265.7,3.51408]
[1736523894004,0.3062,3266.6,3266.5,3.2078]
[1736523894397,4.07121,3267.1,3266.1,3.2078]
[1736523894704,0.76544,3266.9,3266.1,3.2078]
[1736523894906,0.30624,3266.2,3266.1,3.2078]
[1736523895400,8.2078,3266.2,3265.4,3.2078]
[1736523895605,0.30635,3265.0,3264.9,2.13]
[1736523895808,0.76577,3265.5,3264.7,3.2078]
[1736523896100,3.2078,3265.8,3264.7,3.2078]
[1736523896299,1.1566,3265.9,3265.1,3.2078]
[1736523896300,0.30633,3265.3,3265.1,3.2078]
[1736523896506,1.1566,3265.9,3265.1,3.2078]
[1736523896904,0.30633,3265.2,3265.1,3.2078]
[1736523897407,0.3064,3264.5,3264.3,3.2078]
[1736523897607,4.08380595,3265.3,3264.3,3.2078]
[1736523897907,4.9268,3265.4,3264.3,3.2078]
[1736523898101,0.76584,3265.2,3264.3,3.2078]
[1736523898408,0.30641,3264.4,3264.3,3.2078]